bitfinex/quotes_SOLUSD_20250206
["timestamp","ask_amount","ask_price","bid_price","bid_amount"]
[1738813847451,14.50287721,200.61,200.6,0.0001]
[1738813848030,4.9847,200.61,200.6,0.0001]
[1738813848951,4.9845,200.63,200.6,0.0001]
[1738813850551,0.063,200.61,200.6,0.0001]
[1738813860659,9.58117721,200.61,200.6,0.0001]
[1738813861673,14.56587721,200.61,200.6,0.0001]
[1738813862164,28.10321574,200.61,200.6,0.0001]
[1738813863437,20.0,200.58,200.53,0.03]
[1738813863643,9.51817721,200.54,200.53,0.03]
[1738813863943,9.51817721,200.55,200.53,0.03]
[1738813864866,9.51817721,200.56,200.53,0.03]
[1738813865157,14.50437721,200.55,200.53,0.03]
[1738813865375,9.51817721,200.54,200.53,0.03]
[1738813869246,4.9867,200.53,200.44,91.54817721]
[1738813869438,9.51817721,200.51,200.44,91.54817721]
[1738813870946,14.50567721,200.5,200.44,82.03]
[1738813871152,14.50567721,200.5,200.44,0.03]
[1738813871153,9.51817721,200.48,200.44,0.03]
[1738813872168,4.9882,200.47,200.44,0.03]
[1738813872371,14.50637721,200.47,200.44,0.03]
[1738813872571,9.51817721,200.46,200.44,0.03]
[1738813872769,9.51817721,200.45,200.44,0.03]
[1738813874472,4.9887,200.45,200.44,0.03]
[1738813877878,4.988,200.48,200.44,0.03]
[1738813878774,26.15081522,200.56,200.46,9.51817721]
[1738813878775,4.9872,200.51,200.46,9.51817721]
[1738813879271,4.9872,200.51,200.44,9.54817721]
[1738813879971,14.50537721,200.51,200.44,9.54817721]
[1738813880975,4.9872,200.51,200.45,9.51817721]
[1738813881354,4.9872,200.51,200.46,9.51817721]
[1738813883071,4.9872,200.51,200.45,7.9836]
[1738813883571,14.50537721,200.51,200.45,7.9836]
[1738813884073,14.50537721,200.51,200.44,0.03]
[1738813884074,9.51817721,200.48,200.44,0.03]
[1738813884776,9.51817721,200.49,200.44,0.03]
[1738813885954,9.51817721,200.51,200.44,9.54817721]
[1738813886263,4.9877,200.5,200.45,9.51817721]
[1738813887767,0.063,200.53,200.48,9.51817721]
[1738813888078,0.063,200.53,200.5,9.51817721]
[1738813889761,0.063,200.53,200.51,9.51817721]
[1738813889965,0.063,200.53,200.49,5.73557304]
[1738813889966,0.063,200.53,200.52,9.51817721]
[1738813890270,0.063,200.53,200.51,9.51817721]
[1738813890458,0.063,200.53,200.5,9.51817721]
[1738813891652,0.063,200.53,200.48,91.51817721]
[1738813892874,0.063,200.53,200.48,82.0]
[1738813893269,0.063,200.53,200.5,9.51817721]
[1738813895395,0.063,200.53,200.51,9.51817721]
[1738813895881,0.063,200.53,200.52,10.76810841]
[1738813896106,0.063,200.53,200.52,24.17995694]
[1738813896383,0.063,200.53,200.52,9.76915721]
[1738813900073,0.063,200.53,200.52,10.5170284]
[1738813901187,0.063,200.53,200.52,9.76915721]
[1738813902686,0.063,200.53,200.52,10.51703265]
[1738813904094,0.063,200.53,200.52,9.76915721]
[1738813904491,0.063,200.53,200.52,9.51817721]
[1738813904704,0.063,200.53,200.51,197.7]
[1738813904876,0.063,200.53,200.51,82.0]
[1738813908014,0.063,200.53,200.52,9.51817721]
[1738813908204,0.063,200.53,200.52,9.76915721]
[1738813910898,0.063,200.53,200.52,91.64366721]
[1738813911284,0.063,200.53,200.52,91.76915721]
[1738813913409,0.063,200.53,200.52,111.16684304]
[1738813913581,0.063,200.53,200.52,110.41898574]
[1738813916500,0.063,200.61,200.56,0.25098]
[1738813916819,0.063,200.61,200.6,9.51817721]
[1738813918397,0.063,200.61,200.58,9.51817721]
[1738813918590,0.063,200.61,200.56,115.7]
[1738813919184,9.51817721,200.6,200.53,9.51817721]
[1738813919387,9.51817721,200.6,200.51,9.51817721]
[1738813919588,9.51817721,200.58,200.51,9.51817721]
[1738813921507,4.9857,200.57,200.51,9.51817721]
[1738813922283,14.50317721,200.6,200.53,9.51817721]
[1738813922487,4.985,200.6,200.55,9.51817721]
[1738813922688,1.5816,200.61,200.57,9.51817721]
[1738813923006,1.5816,200.61,200.59,9.51817721]
[1738813923209,0.063,200.61,200.6,9.51817721]
[1738813923583,0.063,200.61,200.59,9.51817721]
[1738813924207,0.063,200.61,200.6,9.51817721]
[1738813924713,0.063,200.61,200.6,14.90372944]
[1738813928208,0.063,200.61,200.58,14.90372944]
[1738813928409,0.063,200.61,200.56,115.7]
[1738813928617,14.90372944,200.6,200.56,115.7]
[1738813929001,14.90372944,200.57,200.51,0.03]
[1738813929713,14.90372944,200.58,200.51,0.03]
[1738813930389,14.90372944,200.58,200.51,14.93372944]
[1738813930610,4.9857,200.57,200.51,14.93372944]
[1738813931699,14.90372944,200.59,200.51,14.93372944]
[1738813932196,14.90372944,200.59,200.52,14.90372944]
[1738813933305,4.9855,200.58,200.51,14.93372944]
[1738813933821,4.9855,200.58,200.52,14.90372944]
[1738813934224,4.9852,200.6,200.56,14.90372944]
[1738813935618,4.9852,200.6,200.55,14.90372944]
[1738813936319,5.0482,200.6,200.55,14.90372944]
[1738813937093,0.063,200.6,200.55,14.90372944]
[1738813937529,0.063,200.6,200.52,0.74783165]
[1738813937530,0.063,200.6,200.57,14.90372944]
[1738813938703,0.063,200.6,200.55,14.90372944]
[1738813938904,14.96672944,200.6,200.53,14.90372944]
[1738813939437,0.063,200.6,200.55,14.90372944]
[1738813940636,0.063,200.6,200.54,14.90372944]
[1738813940802,0.063,200.6,200.55,14.90372944]
[1738813942026,0.063,200.6,200.56,14.90372944]
[1738813944430,0.063,200.6,200.58,14.90372944]
[1738813945414,0.063,200.6,200.59,0.99869306]
[1738813946321,0.063,200.6,200.59,0.25098]
[1738813946506,0.063,200.6,200.59,0.99857275]
[1738813946707,0.063,200.6,200.59,10.53487373]
[1738813947328,0.063,200.6,200.59,139.77221226]
[1738813947637,0.063,200.6,200.59,177.29531343]
[1738813948129,0.063,200.66,200.6,14.53733853]
[1738813948304,0.063,200.66,200.65,9.78728098]
[1738813948498,0.063,200.66,200.65,126.23456968]
[1738813948724,0.063,200.66,200.65,144.50272555]
[1738813949230,0.063,200.66,200.65,149.48652555]
[1738813950325,0.063,200.66,200.65,130.71440702]
[1738813950520,0.063,200.66,200.65,130.58891702]
[1738813952530,0.063,200.66,200.65,97.13989702]
[1738813953829,0.063,200.66,200.65,110.67723555]
[1738813954037,0.063,200.66,200.65,110.80272555]
[1738813954228,0.063,200.66,200.65,226.50272555]
[1738813955321,0.063,200.74,200.65,226.50272555]
[1738813955322,0.063,200.74,200.69,20.37647]
[1738813955519,0.063,200.74,200.73,14.88891702]
[1738813955732,0.063,200.74,200.73,15.13989702]
[1738813957209,0.063,200.74,200.73,130.58891702]
[1738813960826,0.063,200.74,200.73,115.7]
[1738813961240,0.063,200.74,200.7,14.88891702]
[1738813962549,0.063,200.74,200.69,14.88891702]
[1738813964144,5.0445,200.74,200.69,14.88891702]
[1738813964640,32.38731702,200.74,200.67,14.88891702]
[1738813964822,32.38731702,200.74,200.65,197.7]
[1738813964823,14.88891702,200.71,200.65,197.7]
[1738813965029,14.88891702,200.7,200.63,130.58891702]
[1738813965235,14.88891702,200.69,200.61,14.88891702]
[1738813965826,14.88891702,200.68,200.61,14.88891702]
[1738813966248,4.9833,200.67,200.61,14.88891702]
[1738813968643,6.5043,200.67,200.61,14.88891702]
[1738813970242,21.39321702,200.67,200.6,96.88891702]
[1738813970425,14.88891702,200.66,200.6,82.0]
[1738813971741,14.88891702,200.66,200.58,14.88891702]
[1738813971949,14.88891702,200.65,200.58,14.88891702]
[1738813972123,14.88891702,200.65,200.57,14.88891702]
[1738813972444,19.87291702,200.64,200.57,14.88891702]
[1738813972661,14.88891702,200.63,200.56,14.88891702]
[1738813973023,14.88891702,200.63,200.6,0.03]
[1738813974051,1.584,200.67,200.62,14.88891702]
[1738813974347,6.5673,200.67,200.63,14.88891702]
[1738813974852,6.5673,200.67,200.61,14.88891702]
[1738813978238,6.5673,200.67,200.6,14.91891702]
[1738813979650,6.5673,200.67,200.61,14.88891702]
[1738813985230,14.88891702,200.65,200.6,0.03]
[1738813985430,14.88891702,200.63,200.6,0.03]
[1738813985846,14.88891702,200.63,200.61,0.03]
[1738813986754,34.88891702,200.64,200.61,0.03]
[1738813986954,20.0,200.64,200.61,0.03]
[1738813987347,4.9842,200.63,200.61,0.03]
[1738813988546,4.9838,200.65,200.61,0.03]
[1738813989965,1.584,200.67,200.64,14.88891702]
[1738813990145,0.063,200.67,200.65,14.88891702]
[1738813991561,0.063,200.67,200.64,14.88891702]
[1738813992847,0.063,200.67,200.65,14.88891702]
[1738813996665,0.063,200.67,200.66,9.53263163]
[1738814004380,0.063,200.67,200.64,9.53263163]
[1738814007974,0.063,200.67,200.65,9.53263163]
[1738814011782,0.063,200.67,200.64,0.03]
[1738814014355,0.063,200.67,200.65,9.53263163]
[1738814015866,0.063,200.67,200.66,9.53263163]
[1738814025391,0.063,200.67,200.66,9.78361163]
[1738814025569,0.063,200.67,200.66,10.53091056]
[1738814026091,0.063,200.67,200.66,9.78361163]
[1738814027270,0.063,200.67,200.66,9.53263163]
[1738814032699,0.063,200.67,200.66,9.56263163]
[1738814040311,0.063,200.67,200.66,0.03]
[1738814042208,0.063,200.67,200.66,9.56263163]
[1738814044311,0.063,200.67,200.66,9.81361163]
[1738814044513,0.063,200.67,200.66,207.51361163]
[1738814045515,0.063,200.67,200.66,212.49711163]
[1738814047003,0.063,200.67,200.66,207.26263163]
[1738814050423,0.063,200.67,200.66,91.56263163]
[1738814050896,0.063,200.67,200.66,82.03]
[1738814051711,0.063,200.67,200.66,0.03]
[1738814052113,0.063,200.67,200.66,116.47761859]
[1738814052419,0.063,200.67,200.66,134.62730853]
[1738814052999,0.063,200.67,200.66,144.15994016]
[1738814054624,0.063,200.67,200.66,456.15994016]
[1738814054920,0.063,200.67,200.66,144.15994016]
[1738814055116,0.063,200.67,200.66,125.51361163]
[1738814056303,0.063,200.67,200.66,9.81361163]
[1738814056527,0.063,200.67,200.66,10.5609424]
[1738814058122,0.063,200.67,200.66,10.6864324]
[1738814062107,0.063,200.67,200.66,15.5444424]
[1738814062309,0.063,200.67,200.66,213.3699324]
[1738814062516,0.063,200.67,200.66,212.62260163]
[1738814065240,0.063,200.67,200.66,207.63910163]
[1738814065929,0.063,200.67,200.66,207.26263163]
[1738814066132,0.063,200.67,200.66,0.03]
[1738814069639,9.59563163,200.67,200.66,0.03]
[1738814070837,0.063,200.67,200.66,0.03]
[1738814071042,14.57893163,200.67,200.66,0.03]
[1738814073060,5.0463,200.67,200.66,0.03]
[1738814074741,0.063,200.67,200.66,0.03]
[1738814075037,0.063,200.67,200.66,9.56263163]
[1738814075421,0.063,200.67,200.66,0.03]
[1738814078337,11.21023163,200.67,200.66,0.03]
[1738814081022,16.19353163,200.67,200.66,0.03]
[1738814086732,29.73087016,200.67,200.66,0.03]
[1738814089635,14.57893163,200.67,200.66,0.03]
[1738814094741,5.0463,200.67,200.66,0.03]
[1738814095869,0.063,200.67,200.66,0.03]
[1738814107540,9.59563163,200.67,200.66,0.03]
[1738814108265,14.57893163,200.67,200.66,0.03]
[1738814109675,28.11627016,200.67,200.66,0.03]
[1738814110167,28.24176016,200.67,200.66,0.03]
[1738814110666,28.99351953,200.67,200.66,0.03]
[1738814111469,28.24176016,200.67,200.66,0.03]
[1738814112761,14.57893163,200.67,200.66,0.03]
[1738814118148,0.063,200.67,200.66,0.03]
[1738814126282,9.59563163,200.67,200.66,0.03]
[1738814127178,14.57893163,200.67,200.66,0.03]
[1738814131058,5.0463,200.67,200.66,0.03]
[1738814132686,0.063,200.67,200.66,0.03]
[1738814133872,9.59563163,200.67,200.66,0.03]
[1738814135486,23.88472953,200.67,200.66,0.03]
[1738814135686,24.01021953,200.67,200.66,0.0001]
[1738814135886,28.99351953,200.67,200.66,0.0001]
[1738814136058,20.0,200.64,200.61,0.03]
[1738814136263,9.53263163,200.62,200.61,0.03]
[1738814137983,14.51683163,200.63,200.61,0.03]
[1738814138283,14.51663163,200.65,200.61,0.03]
[1738814142386,14.51683163,200.63,200.61,0.03]
[1738814144087,9.53263163,200.65,200.61,0.03]
[1738814144389,14.51663163,200.65,200.61,0.03]
[1738814146383,9.53263163,200.63,200.61,0.03]
[1738814147995,4.984,200.65,200.61,0.03]
[1738814147996,9.53263163,200.65,200.61,0.03]
[1738814149091,9.53263163,200.63,200.61,0.03]
[1738814149573,4.9845,200.62,200.61,0.03]
[1738814154298,5.10999,200.62,200.61,0.03]
[1738814154482,18.52183853,200.62,200.61,0.03]
[1738814156477,18.64732853,200.62,200.61,0.03]
[1738814162006,23.06997016,200.61,200.6,0.03]
[1738814162303,23.82172953,200.61,200.6,0.03]
[1738814164422,28.80642953,200.61,200.6,0.03]
[1738814169229,28.80642953,200.61,200.53,0.03]
[1738814169527,9.53263163,200.58,200.53,0.03]
[1738814169825,9.53263163,200.57,200.53,0.03]
[1738814171020,4.986,200.56,200.53,0.03]
[1738814173724,9.53263163,200.57,200.53,0.03]
[1738814174025,4.9858,200.57,200.53,0.03]
[1738814174226,4.9852,200.59,200.53,9.56263163]
[1738814175139,5.048,200.61,200.55,9.53263163]
[1738814175345,5.048,200.61,200.56,9.53263163]
[1738814175510,0.063,200.61,200.56,15.67963163]
[1738814177044,0.063,200.61,200.56,6.147]
[1738814177747,0.063,200.61,200.56,15.67963163]
[1738814178141,0.063,200.61,200.56,6.147]
[1738814182043,0.063,200.61,200.56,15.67963163]
[1738814183748,0.063,200.61,200.57,9.53263163]
[1738814183913,0.063,200.61,200.58,9.53263163]
[1738814184548,0.063,200.61,200.59,9.53263163]
[1738814184750,0.063,200.61,200.6,9.53263163]
[1738814187650,0.063,200.61,200.6,10.28017171]
[1738814187935,0.063,200.61,200.6,11.81547171]
[1738814188154,0.063,200.61,200.6,225.45327334]
[1738814188315,0.063,200.64,200.63,0.37647]
[1738814188633,0.063,200.64,200.63,30.09699746]
[1738814190135,0.063,200.64,200.63,21.29287893]
[1738814190334,0.063,200.64,200.63,35.56133163]
[1738814191822,0.063,200.64,200.63,36.3087644]
[1738814192839,0.063,200.64,200.63,50.09708293]
[1738814193041,0.063,200.64,200.63,247.79708293]
[1738814193340,0.063,200.64,200.63,247.04965016]
[1738814193517,0.063,200.64,200.63,227.04965016]
[1738814193716,0.063,200.64,200.63,228.04965016]
[1738814194125,0.063,200.64,200.63,540.04965016]
[1738814194542,0.063,200.64,200.63,539.04965016]
[1738814194736,0.063,200.64,200.63,545.03385016]
[1738814195042,0.063,200.64,200.63,545.15934016]
[1738814198920,0.063,200.64,200.63,233.15934016]
[1738814200449,0.063,200.67,200.66,20.25098]
[1738814200639,0.063,200.67,200.66,243.49451058]
[1738814200836,0.063,200.67,200.66,242.74734016]
[1738814201942,0.063,200.67,200.66,247.73084016]
[1738814209247,0.063,200.67,200.66,248.73084016]
[1738814213049,0.063,200.67,200.66,247.60535016]
[1738814219262,0.063,200.67,200.66,247.73084016]
[1738814219464,0.063,200.67,200.66,248.73084016]
[1738814221676,0.063,200.67,200.66,247.73084016]
[1738814223259,0.063,200.67,200.66,248.73084016]
[1738814226163,0.063,200.67,200.66,560.73084016]
[1738814226961,0.063,200.67,200.66,248.73084016]
[1738814227762,0.063,200.67,200.66,247.73084016]
[1738814229465,0.063,200.67,200.66,246.12994016]
[1738814230654,0.063,200.67,200.66,207.23263163]
[1738814234671,0.063,200.67,200.66,91.53263163]
[1738814238072,0.063,200.67,200.66,82.0]
[1738814238969,0.063,200.67,200.64,9.56263163]
[1738814239144,0.063,200.67,200.64,0.03]
[1738814241453,11.21073163,200.67,200.64,0.03]
[1738814241772,9.53263163,200.66,200.64,0.03]
[1738814243474,4.9838,200.65,200.64,0.03]
[1738814243892,1.6781,200.67,200.64,0.03]
[1738814250783,0.063,200.67,200.64,9.56263163]
[1738814250971,0.063,200.67,200.66,9.53263163]
[1738814255789,0.063,200.67,200.66,10.27999537]
[1738814255968,0.063,200.67,200.66,92.27999537]
[1738814257389,0.063,200.67,200.66,91.53263163]
[1738814259671,0.063,200.67,200.66,82.0]
[1738814263273,0.063,200.67,200.66,96.51613163]
[1738814273718,0.063,200.67,200.66,227.12994016]
[1738814273885,0.063,200.67,200.66,233.25804016]
[1738814276111,0.063,200.67,200.66,545.25804016]
[1738814276306,0.063,200.67,200.66,545.13255016]
[1738814276606,0.063,200.67,200.66,232.13255016]
[1738814278919,0.063,200.67,200.66,226.00445016]
[1738814284009,0.063,200.67,200.64,0.03]
[1738814284010,0.063,200.67,200.64,9.56263163]
[1738814285898,0.063,200.67,200.64,0.03]
[1738814288392,0.063,200.67,200.66,9.53263163]
[1738814294120,0.063,200.67,200.66,91.53263163]
[1738814300436,0.063,200.67,200.66,82.0]
[1738814302641,0.063,200.67,200.66,87.73084826]
[1738814304939,0.063,200.67,200.66,97.26347989]
[1738814305137,0.063,200.67,200.66,96.51613163]
[1738814315847,0.063,200.67,200.66,110.30445016]
[1738814316547,0.063,200.67,200.66,242.08994016]
[1738814316943,0.0001,200.67,200.66,242.08994016]
[1738814319046,0.0001,200.67,200.66,554.08994016]
[1738814319847,0.063,200.74,200.71,1.0]
[1738814320025,0.063,200.74,200.73,29.53263163]
[1738814320426,0.063,200.74,200.73,43.32095016]
[1738814321952,0.063,200.74,200.73,48.30275016]
[1738814322948,0.063,200.74,200.73,47.4569595]
[1738814323354,0.063,200.74,200.73,48.20394882]
[1738814323747,0.063,200.74,200.73,245.90394882]
[1738814323958,0.063,200.74,200.73,245.1569595]
[1738814324459,0.063,200.74,200.73,246.1569595]
[1738814324953,0.063,200.74,200.73,245.2824495]
[1738814329456,0.063,200.74,200.73,557.2824495]
[1738814329756,0.063,200.74,200.73,245.2824495]
[1738814332561,0.063,200.74,200.73,557.2824495]
[1738814332777,0.063,200.74,200.73,245.1569595]
[1738814332941,0.063,200.74,200.73,245.0314695]
[1738814333137,0.063,200.74,200.73,231.36864097]
[1738814333374,0.063,200.74,200.73,226.38684097]
[1738814334656,0.063,200.74,200.73,231.36864097]
[1738814335666,0.063,200.74,200.73,115.66864097]
[1738814337862,0.063,200.74,200.73,207.23263163]
[1738814338464,0.063,200.74,200.73,197.7]
[1738814340365,0.063,200.74,200.73,212.21443163]
[1738814342151,0.063,200.74,200.73,207.23263163]
[1738814342349,0.063,200.74,200.73,197.7]
[1738814343747,0.063,200.74,200.73,212.21443163]
[1738814347074,0.063,200.74,200.73,212.24443163]
[1738814347271,0.063,200.74,200.73,207.26263163]
[1738814348971,0.063,200.74,200.73,197.73]
[1738814353587,0.063,200.74,200.73,82.03]
[1738814375082,0.063,200.74,200.73,87.0118]
[1738814376998,0.063,200.74,200.73,111.07992324]
[1738814377199,0.0001,200.74,200.73,226.15824016]
[1738814379906,0.0001,200.74,200.73,538.15824016]
[1738814383606,0.0001,200.74,200.73,226.15824016]
[1738814384107,0.0001,200.74,200.73,226.03275016]
[1738814384697,0.0001,200.74,200.73,225.90726016]
[1738814387514,0.0001,200.74,200.73,82.03]
[1738814387809,0.0001,200.74,200.73,0.03]
[1738814388011,9.53273163,200.74,200.73,0.03]
[1738814390114,31.19505016,200.74,200.73,0.03]
[1738814398218,36.17655016,200.74,200.73,0.03]
[1738814400239,118.57655016,200.74,200.73,0.03]
[1738814402717,98.53463163,200.74,200.73,0.03]
[1738814403421,82.4001,200.74,200.73,0.03]
[1738814404004,0.0001,200.74,200.73,0.03]
[1738814404314,0.0001,200.74,200.73,9.56263163]
[1738814404512,0.063,200.81,200.76,21.12549]
[1738814404721,0.063,200.81,200.8,1.0]
[1738814404924,0.063,200.81,200.8,135.34062529]
[1738814405219,0.063,200.81,200.8,134.09184853]
[1738814405424,0.063,200.81,200.8,120.68]
[1738814405624,0.063,200.81,200.78,9.53263163]
[1738814405926,0.063,200.81,200.77,14.51323163]
[1738814406127,0.063,200.81,200.8,9.53263163]
[1738814406328,0.063,200.81,200.8,139.76782561]
[1738814406539,0.063,200.81,200.8,139.02095016]
[1738814406821,0.063,200.81,200.8,178.27696668]
[1738814407121,0.0001,200.81,200.8,183.25696668]
[1738814407321,0.063,200.84,200.83,40.14280853]
[1738814407619,0.063,200.84,200.83,40.88936433]
[1738814408334,0.063,200.84,200.83,55.40129596]
[1738814408546,0.03,200.85,200.84,13.91380853]
[1738814408827,0.0001,200.88,200.87,62.57696668]
[1738814409136,0.03,200.95,200.94,0.37647]
[1738814409300,0.03,200.95,200.94,139.76717641]
[1738814409501,0.03,200.95,200.94,139.02095016]
[1738814410000,0.03,200.98,200.97,20.0]
[1738814410201,0.03,200.98,200.97,44.19252528]
[1738814410406,0.03,200.98,200.97,49.16832528]
[1738814411246,0.03,200.98,200.97,30.27871675]
[1738814412040,0.03,200.98,200.97,44.06703528]
[1738814413107,0.03,200.98,200.97,356.06703528]
[1738814413308,0.03,200.98,200.97,355.32095016]
[1738814414330,0.03,200.98,200.97,43.32095016]
[1738814414526,0.03,200.98,200.97,20.0]
[1738814414831,0.03,200.98,200.94,121.929]
[1738814414832,9.56263163,200.98,200.94,115.7]
[1738814415033,9.56263163,200.98,200.9,4.9774]
[1738814415034,9.56263163,200.98,200.9,125.23263163]
[1738814415238,9.53263163,200.97,200.89,133.13843163]
[1738814415934,9.53263163,200.96,200.89,122.0836]
[1738814416322,9.53263163,200.95,200.89,122.0836]
[1738814416523,9.53263163,200.96,200.89,131.61623163]
[1738814416736,14.85857876,200.96,200.89,122.0836]
[1738814416932,19.83437876,200.97,200.9,14.85857876]
[1738814417232,0.03,200.98,200.94,14.85857876]
[1738814417844,0.03,200.98,200.93,14.85857876]
[1738814419744,0.03,200.98,200.91,33.49870729]
[1738814420037,14.88857876,200.98,200.91,33.49870729]
[1738814420736,14.88857876,200.98,200.9,115.7]
[1738814421949,14.85857876,200.96,200.89,14.85857876]
[1738814422118,14.85857876,200.96,200.88,82.0]
[1738814422319,14.85857876,200.96,200.89,14.85857876]
[1738814423149,19.86437876,200.98,200.89,14.85857876]
[1738814424518,19.86437876,200.98,200.91,14.85857876]
[1738814425140,19.86437876,200.98,200.89,33.49920729]
[1738814427741,19.86437876,200.98,200.89,217.53637876]
[1738814428043,19.86437876,200.98,200.89,197.7]
[1738814428743,14.85857876,200.96,200.89,197.7]
[1738814429641,19.83467876,200.96,200.89,197.7]
[1738814429847,19.83467876,200.96,200.89,197.73]
[1738814430646,19.83467876,200.96,200.89,0.03]
[1738814430846,14.85857876,200.92,200.89,0.03]
[1738814431056,14.85857876,200.9,200.89,0.03]
[1738814431251,29.84264752,200.9,200.89,0.03]
[1738814431435,19.83617876,200.9,200.89,0.03]
[1738814432149,19.96166876,200.9,200.89,0.03]
[1738814432345,19.83617876,200.9,200.89,0.03]
[1738814435951,19.96166876,200.9,200.89,0.03]
[1738814436337,34.62449729,200.9,200.89,0.0001]
[1738814436543,49.48307605,200.9,200.89,0.0001]
[1738814436754,69.12008315,200.9,200.89,0.0001]
[1738814437253,20.12549,200.87,200.76,82.0]
[1738814437559,9.52048105,200.81,200.74,132.87048105]
[1738814437730,9.52048105,200.79,200.73,0.03]
[1738814437937,9.52048105,200.78,200.73,0.03]
[1738814438249,9.52048105,200.81,200.74,9.52048105]
[1738814439040,9.52048105,200.81,200.75,9.52048105]
[1738814439430,9.52048105,200.81,200.74,14.50188105]
[1738814440262,9.52048105,200.8,200.74,4.9814]
[1738814440639,14.88138045,200.8,200.74,4.9814]
[1738814440830,12.4469,200.86,200.74,4.9814]
[1738814440831,14.88138045,200.82,200.74,4.9814]
[1738814441037,14.88138045,200.83,200.75,14.88138045]
[1738814441237,14.88138045,200.8,200.74,115.7]
[1738814441661,14.88138045,200.8,200.74,115.73]
[1738814441850,14.88138045,200.79,200.74,115.73]
[1738814442049,14.88138045,200.78,200.74,115.73]
[1738814442250,14.88138045,200.78,200.74,0.03]
[1738814442451,14.88138045,200.8,200.74,0.03]
[1738814443258,19.86148045,200.8,200.74,0.03]
[1738814443658,14.88138045,200.8,200.74,0.03]
[1738814443872,19.86098045,200.82,200.74,5.0115]
[1738814445635,14.88138045,200.82,200.75,13.66282853]
[1738814445968,1.0,200.86,200.77,15.13236045]
[1738814445969,14.88138045,200.86,200.77,15.13236045]
[1738814446264,14.88138045,200.86,200.78,14.88138045]
[1738814446454,14.88138045,200.85,200.78,14.88138045]
[1738814446643,14.88138045,200.84,200.77,197.7]
[1738814446842,14.88138045,200.81,200.77,197.7]
[1738814447155,1.0,200.88,200.77,197.7]
[1738814447156,14.88138045,200.83,200.77,82.0]
[1738814448264,19.86068045,200.83,200.77,82.0]
[1738814450359,19.86068045,200.83,200.74,130.61138045]
[1738814450550,14.88138045,200.81,200.74,115.73]
[1738814450948,14.88138045,200.79,200.74,115.73]
[1738814451743,14.88138045,200.78,200.74,115.73]
[1738814451944,20.0,200.82,200.74,115.73]
[1738814451945,14.88138045,200.76,200.74,0.03]
[1738814452147,14.88138045,200.75,200.74,0.03]
[1738814452660,19.86268045,200.75,200.74,0.03]
[1738814453260,20.61443982,200.75,200.74,0.03]
[1738814454073,19.86268045,200.75,200.74,0.03]
[1738814454254,14.88138045,200.75,200.74,0.03]
[1738814455353,15.00687045,200.75,200.74,0.03]
[1738814455555,29.66969898,200.75,200.74,0.03]
[1738814456843,4.9815,200.74,200.73,0.0001]
[1738814457050,36.06165835,200.74,200.73,0.0001]
[1738814457772,21.52158045,200.74,200.73,0.0001]
[1738814459061,19.86288045,200.74,200.73,0.0001]
[1738814460361,19.98837045,200.74,200.73,0.0001]
[1738814460666,19.86288045,200.74,200.73,0.0001]
[1738814461362,14.88138045,200.74,200.73,0.0001]
[1738814461761,14.88138045,200.76,200.73,0.0001]
[1738814462146,14.88138045,200.74,200.73,0.0001]
[1738814462562,19.86288045,200.74,200.73,0.0001]
[1738814463143,35.27746835,200.74,200.73,0.0001]
[1738814463547,34.27746835,200.74,200.73,0.0001]
[1738814464342,20.74012982,200.74,200.73,0.0001]
[1738814464648,19.86288045,200.74,200.73,0.0001]
[1738814465479,35.27746835,200.74,200.73,0.0001]